fUST/lending_fUST_20250109
["ID","MTS","AMOUNT","RATE_DAILY","PERIOD"]
[348285386,1736434237712,-500.0,0.00021,2]
[348285388,1736434237723,-500.0,0.00021,2]
[348285390,1736434237733,-500.0,0.00021,2]
[348285392,1736434237743,-500.0,0.00021,2]
[348285404,1736434237836,-500.0,0.00021,2]
[348285407,1736434237864,-500.0,0.00021,2]
[348285409,1736434237875,-500.0,0.00021,2]
[348285411,1736434237884,-500.0,0.00021,2]
[348285413,1736434237893,-500.0,0.00021,2]
[348285415,1736434237903,-500.0,0.00021,2]
[348285417,1736434237912,-500.0,0.00021,2]
[348285419,1736434237922,-426.25856111,0.00021,2]
[348285421,1736434237931,-279.26,0.0002108,3]
[348285423,1736434237941,-748.15,0.0002108,2]
[348285425,1736434237950,-500.0,0.0002108,3]
[348285427,1736434237964,-500.0,0.0002108,3]
[348285429,1736434237973,-500.0,0.0002108,3]
[348285431,1736434237984,-500.0,0.0002108,3]
[348285433,1736434237993,-500.0,0.0002108,3]
[348285435,1736434238002,-500.0,0.0002108,3]
[348285437,1736434238011,-500.0,0.0002108,3]
[348285439,1736434238021,-500.0,0.00021081,3]
[348285441,1736434238031,-500.0,0.00021081,3]
[348285443,1736434238040,-2059.69,0.00021081,3]
[348285445,1736434238049,-500.0,0.00021081,3]
[348285447,1736434238059,-500.0,0.00021081,3]
[348285449,1736434238068,-500.0,0.00021082,3]
[348285451,1736434238077,-500.0,0.00021082,3]
[348285453,1736434238086,-500.0,0.00021082,3]
[348285455,1736434238096,-500.0,0.00021082,3]
[348285457,1736434238105,-500.0,0.00021082,3]
[348285459,1736434238115,-500.0,0.00021082,3]
[348285461,1736434238124,-616.22,0.00021082,3]
[348285463,1736434238134,-6436.21,0.00021082,3]
[348285465,1736434238145,-500.0,0.00021082,3]
[348285467,1736434238159,-427.70168725,0.00021158,2]
[348285469,1736434238169,-1159.46,0.00021258,3]
[348285471,1736434238179,-405.25243359,0.00021307,2]
[348285473,1736434238189,-4111.0440709,0.00021331,2]
[348285475,1736434238199,-748.15,0.00021354,2]
[348285477,1736434238210,-500.0,0.00021354,3]
[348285479,1736434238220,-499.0,0.00021354,2]
[348285481,1736434238230,-500.0,0.00021354,3]
[348285483,1736434238241,-500.0,0.00021354,3]
[348285485,1736434238250,-500.0,0.00021354,3]
[348285487,1736434238260,-625.71,0.00021354,3]
[348285489,1736434238270,-337.63,0.00021354,3]
[348285491,1736434238280,-500.0,0.00021354,3]
[348285493,1736434238289,-500.0,0.00021355,3]
[348285495,1736434238298,-500.0,0.00021355,3]
[348285497,1736434238307,-2059.69,0.00021355,3]
[348285499,1736434238317,-500.0,0.00021355,3]
[348285501,1736434238326,-500.0,0.00021355,3]
[348285503,1736434238336,-500.0,0.00021355,3]
[348285505,1736434238344,-500.0,0.00021356,3]
[348285507,1736434238354,-500.0,0.00021356,3]
[348285509,1736434238364,-500.0,0.00021356,3]
[348285511,1736434238373,-500.0,0.00021356,3]
[348285513,1736434238383,-500.0,0.00021356,3]
[348285515,1736434238392,-500.0,0.00021356,3]
[348285517,1736434238402,-6436.21,0.00021356,3]
[348285519,1736434238411,-500.0,0.00021356,3]
[348285521,1736434238421,-151.0,0.000215,3]
[348285523,1736434238430,-1159.46,0.00021532,3]
[348285525,1736434238441,-748.15,0.00021628,2]
[348285527,1736434238450,-500.0,0.00021628,3]
[348285529,1736434238461,-500.0,0.00021628,3]
[348285531,1736434238471,-636.66,0.00021628,3]
[348285533,1736434238480,-500.0,0.00021628,3]
[348285535,1736434238490,-500.0,0.00021628,3]
[348285537,1736434238499,-500.0,0.00021629,3]
[348285539,1736434238509,-500.0,0.00021629,3]
[348285541,1736434238518,-2059.69,0.00021629,3]
[348285543,1736434238528,-500.0,0.00021629,3]
[348285545,1736434238537,-313.2,0.00021629,3]
[348285547,1736434238547,-500.0,0.0002163,3]
[348285549,1736434238557,-500.0,0.0002163,3]
[348285551,1736434238566,-500.0,0.0002163,3]
[348285553,1736434238576,-500.0,0.0002163,3]
[348285555,1736434238586,-500.0,0.0002163,3]
[348285557,1736434238595,-500.0,0.0002163,3]
[348285559,1736434238604,-6436.21,0.0002163,3]
[348285561,1736434238614,-500.0,0.0002163,3]
[348285563,1736434238624,-151.0,0.000217,3]
[348285566,1736434238633,-405.25243359,0.00021781,2]
[348285569,1736434238643,-1159.46,0.00021806,3]
[348285570,1736434238652,-151.0,0.000219,4]
[348285573,1736434238662,-748.15,0.00021902,2]
[348285576,1736434238671,-500.0,0.00021902,3]
[348285579,1736434238680,-500.0,0.00021902,3]
[348285582,1736434238691,-500.0,0.00021902,3]
[348285585,1736434238701,-500.0,0.00021902,3]
[348285587,1736434238712,-500.0,0.00021903,3]
[348285589,1736434238721,-629.58779827,0.00021903,3]
[348285591,1736434238731,-2059.69,0.00021903,3]
[348285593,1736434238740,-455.14837072,0.00021903,3]
[348285605,1736434238854,-44.85162928,0.00021903,3]
[348285607,1736434238864,-252.03676842,0.00021904,5]
[348285609,1736434238875,-10560.70332695,0.00021904,5]
[348285611,1736434238884,-500.0,0.00021904,3]
[348285613,1736434238894,-500.0,0.00021904,3]
[348285615,1736434238903,-500.0,0.00021904,3]
[348285617,1736434238912,-500.0,0.00021904,3]
[348285619,1736434238922,-500.0,0.00021904,3]
[348285621,1736434238931,-500.0,0.00021904,3]
[348285623,1736434238941,-6436.21,0.00021904,3]
[348285625,1736434238951,-500.0,0.00021904,3]
[348285627,1736434238962,-4111.0440709,0.00021953,2]
[348285629,1736434238972,-1159.46,0.0002208,3]
[348285631,1736434238982,-151.0,0.000221,8]
[348285633,1736434238992,-153.0,0.00022134,2]
[348285635,1736434239002,-153.0,0.00022134,2]
[348285637,1736434239011,-153.0,0.00022134,2]
[348285639,1736434239020,-153.0,0.00022134,2]
[348285641,1736434239029,-153.0,0.00022134,2]
[348285643,1736434239039,-153.0,0.00022134,2]
[348285645,1736434239048,-153.0,0.00022134,2]
[348285647,1736434239058,-153.0,0.00022134,2]
[348285650,1736434239068,-153.0,0.00022134,2]
[348285651,1736434239078,-153.0,0.00022134,2]
[348285654,1736434239087,-153.0,0.00022134,2]
[348285656,1736434239097,-153.0,0.00022134,2]
[348285658,1736434239107,-153.0,0.00022134,2]
[348285659,1736434239117,-153.0,0.00022134,2]
[348285661,1736434239126,-153.0,0.00022134,2]
[348285663,1736434239136,-153.0,0.00022134,2]
[348285668,1736434239148,-153.0,0.00022134,2]
[348285670,1736434239158,-153.0,0.00022134,2]
[348285674,1736434239167,-153.0,0.00022134,2]
[348285676,1736434239177,-153.0,0.00022134,2]
[348285681,1736434239187,-153.0,0.00022134,2]
[348285684,1736434239197,-153.0,0.00022134,2]
[348285687,1736434239206,-153.0,0.00022134,2]
[348285690,1736434239217,-153.0,0.00022134,2]
[348285693,1736434239226,-153.0,0.00022134,2]
[348285696,1736434239238,-153.0,0.00022134,2]
[348285698,1736434239247,-153.0,0.00022134,2]
[348285700,1736434239257,-153.0,0.00022134,2]
[348285702,1736434239267,-153.0,0.00022134,2]
[348285704,1736434239276,-153.0,0.00022134,2]
[348285705,1736434239285,-153.0,0.00022134,2]
[348285708,1736434239296,-153.0,0.00022134,2]
[348285710,1736434239306,-153.0,0.00022134,2]
[348285711,1736434239316,-153.0,0.00022134,2]
[348285714,1736434239326,-153.0,0.00022134,2]
[348285716,1736434239336,-153.0,0.00022134,2]
[348285717,1736434239345,-153.0,0.00022134,2]
[348285720,1736434239355,-153.0,0.00022134,2]
[348285722,1736434239364,-153.0,0.00022134,2]
[348285724,1736434239374,-153.0,0.00022134,2]
[348285726,1736434239383,-153.0,0.00022134,2]
[348285728,1736434239393,-153.0,0.00022134,2]
[348285730,1736434239402,-748.15,0.00022176,2]
[348285732,1736434239411,-500.0,0.00022176,3]
[348285734,1736434239421,-500.0,0.00022176,3]
[348285736,1736434239431,-500.0,0.00022176,3]
[348285738,1736434239439,-500.0,0.00022176,3]
[348285740,1736434239449,-500.0,0.00022177,3]
[348285742,1736434239458,-2059.69,0.00022177,3]
[348285744,1736434239475,-500.0,0.00022177,3]
[348285746,1736434239484,-500.0,0.00022178,3]
[348285748,1736434239493,-500.0,0.00022178,3]
[348285750,1736434239502,-500.0,0.00022178,3]
[348285752,1736434239511,-500.0,0.00022178,3]
[348285754,1736434239520,-500.0,0.00022178,3]
[348285756,1736434239530,-500.0,0.00022178,3]
[348285758,1736434239539,-6436.21,0.00022178,3]
[348285760,1736434239548,-500.0,0.00022178,3]
[348285762,1736434239558,-151.0,0.000222,5]
[348285764,1736434239567,-278.874569,0.000222,2]
[348285766,1736434239576,-10270.6427938,0.00022242,2]
[348285768,1736434239586,-405.25243359,0.00022255,2]
[348285770,1736434239596,-1159.46,0.00022354,3]
[348285772,1736434239606,-153.0,0.00022385,2]
[348285774,1736434239616,-153.0,0.00022385,2]
[348285776,1736434239626,-153.0,0.00022385,2]
[348285778,1736434239635,-153.0,0.00022385,2]
[348285780,1736434239644,-153.0,0.00022385,2]
[348285782,1736434239653,-153.0,0.00022385,2]
[348285784,1736434239663,-153.0,0.00022385,2]
[348285786,1736434239673,-153.0,0.00022385,2]
[348285788,1736434239682,-153.0,0.00022385,2]
[348285790,1736434239692,-153.0,0.00022385,2]
[348285792,1736434239701,-153.0,0.00022385,2]
[348285794,1736434239712,-153.0,0.00022385,2]
[348285796,1736434239722,-153.0,0.00022385,2]
[348285798,1736434239732,-153.0,0.00022385,2]
[348285800,1736434239741,-153.0,0.00022385,2]
[348285802,1736434239751,-153.0,0.00022385,2]
[348285804,1736434239761,-153.0,0.00022385,2]
[348285806,1736434239771,-153.0,0.00022385,2]
[348285808,1736434239781,-153.0,0.00022385,2]
[348285810,1736434239790,-153.0,0.00022385,2]
[348285812,1736434239799,-153.0,0.00022385,2]
[348285814,1736434239809,-153.0,0.00022385,2]
[348285816,1736434239819,-153.0,0.00022385,2]
[348285818,1736434239830,-153.0,0.00022385,2]
[348285820,1736434239840,-153.0,0.00022385,2]
[348285822,1736434239850,-153.0,0.00022385,2]
[348285824,1736434239859,-153.0,0.00022385,2]
[348285826,1736434239868,-153.0,0.00022385,2]
[348285828,1736434239878,-153.0,0.00022385,2]
[348285830,1736434239889,-153.0,0.00022385,2]
[348285832,1736434239899,-153.0,0.00022385,2]
[348285834,1736434239908,-153.0,0.00022385,2]
[348285836,1736434239917,-153.0,0.00022385,2]
[348285838,1736434239927,-60328.33999206,0.00022391,5]
[348285842,1736434240017,-151.0,0.000224,9]
[348285843,1736434240026,-748.15,0.0002245,2]
[348285844,1736434240035,-500.0,0.0002245,3]
[348285845,1736434240045,-500.0,0.0002245,3]
[348285846,1736434240054,-500.0,0.0002245,3]
[348285847,1736434240064,-500.0,0.0002245,3]
[348285848,1736434240073,-500.0,0.00022451,3]
[348285849,1736434240083,-2059.69,0.00022451,3]
[348285850,1736434240093,-500.0,0.00022451,3]
[348285851,1736434240103,-500.0,0.00022452,3]
[348285852,1736434240112,-500.0,0.00022452,3]
[348285854,1736434240122,-500.0,0.00022452,3]
[348285856,1736434240132,-6436.21,0.00022452,3]
[348285858,1736434240143,-549.03581944,0.00022452,3]
[348285860,1736434240156,-10270.6427938,0.00022532,2]
[348285862,1736434240166,-4111.0440709,0.00022576,2]
[348285864,1736434240175,-151.0,0.000226,5]
[348285866,1736434240186,-1159.46,0.00022628,3]
[348285868,1736434240196,-748.15,0.00022724,2]
[348285870,1736434240206,-500.0,0.00022724,3]
[348285872,1736434240221,-500.0,0.00022724,3]
[348285874,1736434240230,-500.0,0.00022724,3]
[348285876,1736434240240,-500.0,0.00022724,3]
[348285878,1736434240250,-546.64,0.00022725,3]
[348285880,1736434240260,-2059.69,0.00022725,3]
[348285882,1736434240271,-500.0,0.00022725,3]
[348285884,1736434240280,-500.0,0.00022726,3]
[348285886,1736434240290,-6436.21,0.00022726,3]
[348285888,1736434240299,-405.25243359,0.00022729,2]
[348285890,1736434240310,-151.0,0.000228,7]
[348285892,1736434240320,-151.0,0.000229,10]
[348285894,1736434240331,-1159.46,0.00022902,3]
[348285896,1736434240341,-10270.64279381,0.00022986,2]
[348285898,1736434240350,-748.15,0.00022998,2]
[348285900,1736434240360,-500.0,0.00022998,3]
[348285902,1736434240371,-500.0,0.00022998,3]
[348285904,1736434240381,-500.0,0.00022998,3]
[348285906,1736434240390,-500.0,0.00022998,3]
[348285908,1736434240400,-2059.69,0.00022999,3]
[348285911,1736434240411,-500.0,0.00022999,3]
[348285913,1736434240421,-205.79,0.00023,2]
[348285915,1736434240431,-300.0,0.00023,10]
[348285917,1736434240441,-791.0,0.00023,2]
[348285919,1736434240451,-500.0,0.00023,3]
[348285921,1736434240464,-6436.21,0.00023,3]
[348285923,1736434240473,-1539.23,0.00023086,3]
[348285925,1736434240483,-500.0,0.00023086,3]
[348285927,1736434240492,-500.0,0.00023086,3]
[348285929,1736434240501,-500.0,0.00023086,3]
[348285931,1736434240511,-500.0,0.00023086,3]
[348285933,1736434240520,-150.0,0.00023099,2]
[348285935,1736434240530,-535.0,0.00023099,2]
[348285937,1736434240540,-2081.0,0.00023099,2]
[348285939,1736434240549,-2317.0,0.00023099,2]
[348285941,1736434240559,-394.0,0.00023099,2]
[348285943,1736434240569,-151.0,0.000231,9]
[348285945,1736434240579,-32651.72648478,0.00023173,3]
[348285947,1736434240590,-605.90913029,0.00023175,10]
[348285949,1736434240599,-1159.46,0.00023176,3]
[348285951,1736434240608,-4111.0440709,0.00023198,2]
[348285953,1736434240618,-699.68,0.000232,7]
[348285955,1736434240627,-150.0,0.000232,2]
[348285957,1736434240640,-405.25243359,0.00023203,2]
[348285959,1736434240658,-748.15,0.00023272,2]
[348285961,1736434240667,-500.0,0.00023272,3]
[348285963,1736434240677,-500.0,0.00023272,3]
[348285965,1736434240687,-501.53448906,0.00023272,3]
[348285967,1736434240696,-500.0,0.00023272,3]
[348285969,1736434240705,-500.0,0.00023273,2]
[348285972,1736434240717,-2059.69,0.00023273,3]
[348285975,1736434240727,-500.0,0.00023273,3]
[348285978,1736434240737,-500.0,0.00023274,3]
[348285980,1736434240746,-6436.21,0.00023274,3]
[348285982,1736434240756,-278.0,0.0002328,10]
[348285984,1736434240765,-353.074473,0.00023288,2]
[348285986,1736434240775,-353.074473,0.00023288,2]
[348285988,1736434240785,-353.074473,0.00023288,2]
[348285990,1736434240794,-275.1236955,0.00023288,2]
[348285992,1736434240804,-353.074473,0.00023288,2]
[348285994,1736434240814,-153.8047844,0.00023288,2]
[348285996,1736434240823,-153.0,0.00023288,2]
[348285998,1736434240833,-353.074473,0.00023288,2]
[348286000,1736434240843,-153.8047844,0.00023288,2]
[348286002,1736434240853,-353.074473,0.00023288,2]
[348286004,1736434240863,-353.074473,0.00023288,2]
[348286006,1736434240872,-153.8047844,0.00023288,2]
[348286008,1736434240881,-353.074473,0.00023288,2]
[348286010,1736434240890,-214.7427429,0.00023288,2]
[348286012,1736434240899,-353.074473,0.00023288,2]
[348286014,1736434240909,-353.074473,0.00023288,2]
[348286016,1736434240918,-214.7427429,0.00023288,2]
[348286018,1736434240927,-353.074473,0.00023288,2]
[348286020,1736434240937,-353.074473,0.00023288,2]
[348286022,1736434240946,-353.074473,0.00023288,2]
[348286024,1736434240956,-345.0853876,0.00023288,2]
[348286026,1736434240968,-153.5822616,0.00023288,2]
[348286028,1736434240978,-214.5090315,0.00023288,2]
[348286030,1736434240988,-306.0,0.00023288,2]
[348286032,1736434240997,-153.0,0.00023288,2]
[348286034,1736434241007,-153.8047844,0.00023288,2]
[348286036,1736434241016,-153.0,0.00023288,2]
[348286038,1736434241026,-153.8047844,0.00023288,2]
[348286040,1736434241035,-153.0,0.00023288,2]
[348286042,1736434241044,-153.8047844,0.00023288,2]
[348286044,1736434241054,-214.7427429,0.00023288,2]
[348286046,1736434241063,-153.8047844,0.00023288,2]
[348286048,1736434241073,-153.8047844,0.00023288,2]
[348286050,1736434241082,-214.7427429,0.00023288,2]
[348286052,1736434241091,-214.5090315,0.00023288,2]
[348286054,1736434241101,-500.0,0.00023289,2]
[348286056,1736434241111,-151.0,0.0002329,7]
[348286058,1736434241120,-151.0,0.0002329,7]
[348286060,1736434241129,-151.0,0.0002329,7]
[348286062,1736434241138,-538.442944,0.0002329,7]
[348286064,1736434241148,-538.442944,0.0002329,7]
[348286066,1736434241159,-538.442944,0.0002329,7]
[348286068,1736434241169,-538.442944,0.0002329,7]
[348286070,1736434241179,-538.442944,0.0002329,7]
[348286072,1736434241189,-538.442944,0.0002329,7]
[348286074,1736434241199,-538.442944,0.0002329,7]
[348286076,1736434241208,-538.442944,0.0002329,7]
[348286078,1736434241222,-538.442944,0.0002329,7]
[348286080,1736434241231,-538.442944,0.0002329,7]
[348286082,1736434241240,-538.442944,0.0002329,7]
[348286084,1736434241250,-538.442944,0.0002329,7]
[348286086,1736434241259,-538.442944,0.0002329,7]
[348286088,1736434241272,-538.442944,0.0002329,7]
[348286090,1736434241281,-538.442944,0.0002329,7]
[348286092,1736434241291,-538.442944,0.0002329,7]
[348286094,1736434241301,-538.442944,0.0002329,7]
[348286096,1736434241311,-538.442944,0.0002329,7]
[348286098,1736434241320,-538.442944,0.0002329,7]
[348286100,1736434241329,-538.442934,0.0002329,7]
[348286102,1736434241340,-151.0,0.0002329,7]
[348286104,1736434241349,-151.0,0.0002329,7]
[348286106,1736434241359,-151.0,0.0002329,7]
[348286108,1736434241368,-151.0,0.0002329,7]
[348286110,1736434241378,-151.0,0.0002329,7]
[348286112,1736434241387,-192.821247,0.0002329,7]
[348286114,1736434241397,-192.821247,0.0002329,7]
[348286116,1736434241406,-192.821247,0.0002329,7]
[348286118,1736434241415,-192.821247,0.0002329,7]
[348286120,1736434241425,-192.821247,0.0002329,7]
[348286122,1736434241434,-151.0,0.0002329,7]
[348286124,1736434241444,-192.821247,0.0002329,7]
[348286127,1736434241456,-151.0,0.0002329,7]
[348286128,1736434241474,-192.821247,0.0002329,7]
[348286131,1736434241483,-151.0,0.0002329,7]
[348286132,1736434241492,-192.821247,0.0002329,7]
[348286134,1736434241501,-219.58991,0.0002329,7]
[348286136,1736434241511,-192.821247,0.0002329,7]
[348286138,1736434241520,-192.821247,0.0002329,7]
[348286140,1736434241530,-192.821247,0.0002329,7]
[348286142,1736434241539,-192.821247,0.0002329,7]
[348286144,1736434241548,-192.821247,0.0002329,7]
[348286146,1736434241557,-192.821247,0.0002329,7]
[348286148,1736434241567,-192.821247,0.0002329,7]
[348286150,1736434241576,-192.821247,0.0002329,7]
[348286152,1736434241585,-192.821247,0.0002329,7]
[348286154,1736434241594,-192.821247,0.0002329,7]
[348286156,1736434241603,-192.821247,0.0002329,7]
[348286158,1736434241612,-192.821245,0.0002329,7]
[348286160,1736434241621,-470.591214,0.0002329,7]
[348286162,1736434241630,-470.591214,0.0002329,7]
[348286164,1736434241640,-470.591214,0.0002329,7]
[348286166,1736434241649,-470.591214,0.0002329,7]
[348286168,1736434241658,-470.591214,0.0002329,7]
[348286170,1736434241667,-470.591214,0.0002329,7]
[348286172,1736434241676,-470.591214,0.0002329,7]
[348286174,1736434241685,-470.591214,0.0002329,7]
[348286176,1736434241694,-470.591214,0.0002329,7]
[348286178,1736434241703,-470.591214,0.0002329,7]
[348286180,1736434241714,-470.591214,0.0002329,7]
[348286182,1736434241723,-470.591214,0.0002329,7]
[348286184,1736434241732,-470.591214,0.0002329,7]
[348286186,1736434241742,-470.591214,0.0002329,7]
[348286188,1736434241751,-470.591214,0.0002329,7]
[348286190,1736434241760,-470.591214,0.0002329,7]
[348286192,1736434241770,-470.591214,0.0002329,7]
[348286194,1736434241779,-470.591214,0.0002329,7]
[348286196,1736434241788,-470.591214,0.0002329,7]
[348286198,1736434241798,-470.591214,0.0002329,7]
[348286200,1736434241807,-151.0,0.0002329,7]
[348286202,1736434241816,-151.328184,0.0002329,7]
[348286204,1736434241825,-176.450594,0.0002329,7]
[348286206,1736434241834,-176.450594,0.0002329,7]
[348286208,1736434241844,-176.450594,0.0002329,7]
[348286210,1736434241853,-176.450594,0.0002329,7]
[348286212,1736434241862,-176.450594,0.0002329,7]
[348286214,1736434241871,-176.450594,0.0002329,7]
[348286216,1736434241880,-176.450594,0.0002329,7]
[348286218,1736434241890,-176.450594,0.0002329,7]
[348286220,1736434241899,-176.450594,0.0002329,7]
[348286222,1736434241908,-176.450594,0.0002329,7]
[348286224,1736434241917,-176.450594,0.0002329,7]
[348286226,1736434241927,-176.450594,0.0002329,7]
[348286228,1736434241936,-176.450594,0.0002329,7]
[348286230,1736434241945,-176.450594,0.0002329,7]
[348286232,1736434241954,-176.450594,0.0002329,7]
[348286234,1736434241966,-176.450594,0.0002329,7]
[348286236,1736434241975,-176.450594,0.0002329,7]
[348286238,1736434241985,-176.450594,0.0002329,7]
[348286240,1736434241995,-176.450594,0.0002329,7]
[348286242,1736434242004,-176.450596,0.0002329,7]
[348286244,1736434242014,-417.039754,0.0002329,7]
[348286246,1736434242023,-417.039754,0.0002329,7]
[348286248,1736434242032,-417.039754,0.0002329,7]
[348286259,1736434242116,-417.039754,0.0002329,7]
[348286261,1736434242126,-417.039754,0.0002329,7]
[348286263,1736434242137,-417.039754,0.0002329,7]
[348286265,1736434242150,-417.039754,0.0002329,7]
[348286267,1736434242160,-417.039754,0.0002329,7]
[348286269,1736434242171,-417.039754,0.0002329,7]
[348286271,1736434242181,-417.039754,0.0002329,7]
[348286273,1736434242191,-417.039754,0.0002329,7]
[348286275,1736434242200,-417.039754,0.0002329,7]
[348286277,1736434242209,-417.039754,0.0002329,7]
[348286279,1736434242220,-417.039754,0.0002329,7]
[348286281,1736434242230,-417.039754,0.0002329,7]
[348286283,1736434242240,-417.039754,0.0002329,7]
[348286285,1736434242250,-417.039754,0.0002329,7]
[348286287,1736434242259,-417.039754,0.0002329,7]
[348286289,1736434242268,-417.039754,0.0002329,7]
[348286291,1736434242278,-417.039764,0.0002329,7]
[348286293,1736434242288,-151.0,0.00023291,7]
[348286295,1736434242298,-151.0,0.00023291,7]
[348286297,1736434242307,-151.0,0.00023291,7]
[348286299,1736434242317,-151.0,0.00023291,7]
[348286301,1736434242326,-151.0,0.00023291,7]
[348286303,1736434242336,-151.0,0.00023291,7]
[348286305,1736434242345,-151.0,0.00023291,7]
[348286307,1736434242355,-151.0,0.00023291,7]
[348286309,1736434242364,-151.0,0.00023291,7]
[348286311,1736434242374,-151.0,0.00023291,7]
[348286313,1736434242383,-151.0,0.00023291,7]
[348286315,1736434242393,-151.0,0.00023291,7]
[348286317,1736434242402,-151.0,0.00023291,7]
[348286319,1736434242412,-151.0,0.00023291,7]
[348286321,1736434242421,-151.0,0.00023291,7]
[348286323,1736434242431,-151.0,0.00023291,7]
[348286325,1736434242441,-151.0,0.00023291,7]
[348286327,1736434242451,-151.0,0.00023291,7]
[348286330,1736434242461,-151.0,0.00023291,7]
[348286331,1736434242471,-237.666923,0.00023291,7]
[348286334,1736434242481,-151.0,0.00023291,7]
[348286335,1736434242491,-292.533554,0.00023291,7]
[348286338,1736434242501,-500.0,0.00023291,5]
[348286339,1736434242510,-500.0,0.00023291,5]
[348286341,1736434242520,-500.0,0.00023291,5]
[348286343,1736434242530,-235.31482377,0.00023291,5]
[348286346,1736434242539,-500.0,0.00023292,9]
[348286347,1736434242549,-500.0,0.00023292,9]
[348286350,1736434242558,-151.0,0.00023298,7]
[348286352,1736434242567,-151.0,0.00023298,7]
[348286354,1736434242577,-151.0,0.00023298,7]
[348286356,1736434242586,-151.0,0.00023298,7]
[348286358,1736434242596,-151.0,0.00023298,7]
[348286360,1736434242606,-151.0,0.00023298,7]
[348286362,1736434242615,-151.0,0.00023298,7]
[348286364,1736434242625,-151.0,0.00023298,7]
[348286366,1736434242634,-157.341571,0.00023298,7]
[348286368,1736434242644,-157.341571,0.00023298,7]
[348286370,1736434242654,-157.341571,0.00023298,7]
[348286372,1736434242663,-157.341571,0.00023298,7]
[348286374,1736434242673,-157.341571,0.00023298,7]
[348286376,1736434242682,-157.341571,0.00023298,7]
[348286377,1736434242692,-157.341571,0.00023298,7]
[348286378,1736434242701,-157.341571,0.00023298,7]
[348286379,1736434242711,-157.341571,0.00023298,7]
[348286380,1736434242722,-157.341571,0.00023298,7]
[348286381,1736434242732,-157.341571,0.00023298,7]
[348286382,1736434242741,-157.341571,0.00023298,7]
[348286383,1736434242751,-157.341571,0.00023298,7]
[348286384,1736434242760,-157.341571,0.00023298,7]
[348286385,1736434242770,-157.341571,0.00023298,7]
[348286386,1736434242779,-157.341571,0.00023298,7]
[348286387,1736434242789,-157.341571,0.00023298,7]
[348286388,1736434242798,-157.341571,0.00023298,7]
[348286389,1736434242808,-157.341571,0.00023298,7]
[348286390,1736434242818,-157.341567,0.00023298,7]
[348286392,1736434242827,-2215.98,0.000233,14]
[348286394,1736434242837,-5963.07,0.000233,14]
[348286396,1736434242847,-5973.22,0.000233,2]
[348286398,1736434242857,-153.81,0.000233,31]
[348286399,1736434242866,-153.81,0.000233,31]
[348286401,1736434242875,-153.81,0.000233,31]
[348286404,1736434242885,-47286.38253846,0.00023303,10]
[348286421,1736434243051,-500.0,0.00019973,2]
[348286423,1736434243060,-500.0,0.00019973,2]
[348286425,1736434243070,-500.0,0.00019973,2]
[348286428,1736434243080,-500.0,0.00019973,2]
[348286430,1736434243090,-500.0,0.00019985,3]
[348286432,1736434243100,-500.0,0.00019985,3]